fUST/lending_fUST_20250624
["ID","MTS","AMOUNT","RATE_DAILY","PERIOD"]
[367180152,1750694436885,-1657.78,0.000348,31]
[367180153,1750694436957,-1657.78,0.000348,31]
[367180154,1750694437027,-1657.78,0.000348,31]
[367180155,1750694437099,-1657.78,0.000348,31]
[367180156,1750694437167,-1657.78,0.000348,31]
[367180157,1750694437237,-1657.78,0.000348,31]
[367180158,1750694437302,-1657.78,0.000348,31]
[367180159,1750694437365,-1657.78,0.000348,31]
[367180160,1750694437426,-200.0,0.00034909,120]
[367180161,1750694437485,-200.0,0.0003492,120]
[367180162,1750694437548,-200.0,0.00034973,120]
[367180163,1750694437615,-200.0,0.00034988,120]
[367180164,1750694437681,-210.76803645,0.00035,30]
[367180165,1750694437742,-434.5214207,0.00035,120]
[367180166,1750694437803,-162.158,0.00035,5]
[367180167,1750694437864,-60000.0,0.00035,120]
[367180168,1750694437923,-2019.0,0.00035,120]
[367180169,1750694437983,-207.3705,0.00035,5]
[367180170,1750694438043,-600.0,0.00035,120]
[367180171,1750694438105,-332.0,0.00035038,30]
[367180172,1750694438168,-162.0,0.00035096,29]
[367180173,1750694438232,-519.3,0.000351,14]
[367180174,1750694438294,-152.0,0.00035215,15]
[367180175,1750694438361,-200.0,0.00035367,120]
[367180176,1750694438424,-1218.66233991,0.00035616,30]
[367180177,1750694438487,-152.0,0.00035728,15]
[367180178,1750694438555,-206.0,0.0003596,30]
[367180179,1750694438623,-1000.0,0.00036,120]
[367180180,1750694438704,-1112.43451,0.00036,120]
[367180181,1750694438773,-153.0,0.00036,120]
[367180182,1750694438841,-1000.0,0.00036,120]
[367180183,1750694438909,-152.0,0.0003624,15]
[367180184,1750694438973,-167.0,0.00036247,30]
[367180185,1750694439039,-332.0,0.00036247,30]
[367180186,1750694439104,-500.0,0.00036251,5]
[367180187,1750694439169,-2000.0,0.00036561,15]
[367180188,1750694439235,-200.0,0.00036736,120]
[367180189,1750694439297,-200.0,0.00036739,120]
[367180190,1750694439362,-152.0,0.00036753,15]
[367180191,1750694439429,-169.0915,0.0003678,5]
[367180192,1750694439492,-207.3705,0.0003678,5]
[367180193,1750694439558,-200.0,0.00036872,120]
[367180194,1750694439630,-200.0,0.00036936,120]
[367180195,1750694439696,-500.0,0.00036986,10]
[367180196,1750694439766,-500.0,0.00036986,7]
[367180197,1750694439833,-500.0,0.00036986,30]
[367180198,1750694439897,-334.88,0.00036986,15]
[367180199,1750694439967,-600.0,0.00037,120]
[367180200,1750694440050,-170.83525,0.00037102,5]
[367180201,1750694440123,-200.0,0.00037105,120]
[367180202,1750694440200,-500.0,0.00037164,60]
[367180203,1750694440271,-206.0,0.0003718,30]
[367180204,1750694440344,-448.43822232,0.0003726,14]
[367180205,1750694440416,-152.0,0.00037265,15]
[367180206,1750694440486,-200.0,0.00037318,120]
[367180207,1750694440555,-200.0,0.00037475,120]
[367180208,1750694440623,-1112.43451,0.000375,120]
[367180209,1750694440692,-1015.30403306,0.000376,10]
[367180210,1750694440761,-152.0,0.00037778,15]
[367180211,1750694440829,-8607.79,0.000378,7]
[367180212,1750694440896,-200.0,0.00037986,120]
[367180213,1750694440961,-1000.0,0.00038,60]
[367180214,1750694441025,-71517.33,0.00038,14]
[367180215,1750694441090,-300.0,0.00038,120]
[367180216,1750694441158,-1000.0,0.00038,120]
[367180217,1750694441220,-500.0,0.0003826,60]
[367180218,1750694441286,-152.0,0.0003829,15]
[367180219,1750694441348,-119337.57622426,0.000383,120]
[367180220,1750694717769,3858.89514701,0.00024658,120]
[367180228,1750694826078,-2000.0,0.0002,2]
[367180229,1750694826098,-192.517962,0.00020363,2]
[367180230,1750694826119,-153.32499634,0.00020752,2]
[367180231,1750694826139,-162.30016653,0.00020852,2]
[367180232,1750694826161,-1200.0,0.00020952,2]
[367180233,1750694826182,-300.0,0.00020952,2]
[367180234,1750694826203,-300.0,0.00020952,2]
[367180235,1750694826226,-15408.73469693,0.00020953,2]
[367180236,1750694832114,-1081.26530307,0.00020953,2]
[367180237,1750694832136,-160.0,0.00021,2]
[367180238,1750694832158,-163.4570684,0.00021136,2]
[367180239,1750694832178,-500.0,0.00021573,2]
[367180240,1750694832200,-155.96262242,0.00021582,2]
[367180241,1750694832220,-460.0,0.00021582,2]
[367180242,1750694832243,-714.13,0.00021583,10]
[367180243,1750694832266,-595.11,0.00021583,10]
[367180244,1750694832287,-262.92,0.00021585,3]
[367180245,1750694832308,-788.76,0.00021585,3]
[367180246,1750694832329,-460.0,0.00021591,2]
[367180247,1750694832350,-460.0,0.00021591,2]
[367180248,1750694832371,-337.96584668,0.00021591,2]
[367180249,1750694832392,-460.0,0.00021591,2]
[367180250,1750694832413,-460.0,0.00021591,2]
[367180251,1750694832434,-460.0,0.00021591,2]
[367180252,1750694832455,-1364.13,0.00021591,2]
[367180253,1750694832481,-460.0,0.00021591,2]
[367180254,1750694832503,-460.0,0.00021591,2]
[367180255,1750694832523,-460.0,0.00021591,2]
[367180256,1750694832545,-6.27862564,0.00021591,2]
[367180257,1750694861375,-184.870615,0.00020594,2]
[367180258,1750694896462,-300.0,0.00020593,2]
[367180259,1750694896487,-19429.0,0.00020594,2]
[367180279,1750695032061,-2831.53200024,0.00020594,2]
[367180303,1750695037770,-1680.81928449,0.00020594,2]
[367180305,1750695037940,-773.77810027,0.00020594,2]
[367180306,1750695037950,-205.82541193,0.00021495,2]
[367180307,1750695037961,-2934.17650191,0.00021495,2]
[367180308,1750695037972,-1355.57568137,0.00021495,2]
[367180309,1750695037982,-300.0,0.00021572,2]
[367180310,1750695037991,-300.0,0.00021572,2]
[367180311,1750695038001,-300.0,0.00021572,2]
[367180312,1750695038010,-93.56775723,0.00021572,2]
[367180313,1750695038026,-1106.43224277,0.00021572,2]
[367180314,1750695038035,-513.09277418,0.00021573,2]
[367180315,1750695038045,-500.0,0.00021573,2]
[367180316,1750695038055,-500.0,0.00021573,2]
[367180317,1750695038065,-500.0,0.00021573,2]
[367180319,1750695038074,-500.0,0.00021573,2]
[367180320,1750695038084,-500.0,0.00021573,2]
[367180321,1750695038093,-672.63,0.00021582,2]
[367180322,1750695038103,-460.0,0.00021582,2]
[367180323,1750695038111,-460.0,0.00021582,2]
[367180324,1750695038120,-460.0,0.00021582,2]
[367180325,1750695038129,-460.0,0.00021582,2]
[367180326,1750695038139,-759.33,0.00021582,2]
[367180327,1750695038148,-460.0,0.00021582,2]
[367180328,1750695038157,-460.0,0.00021582,2]
[367180329,1750695038166,-460.0,0.00021582,2]
[367180330,1750695038177,-870.0,0.00021582,2]
[367180331,1750695038187,-460.0,0.00021582,2]
[367180332,1750695038197,-467.63,0.00021582,2]
[367180333,1750695038206,-460.0,0.00021582,2]
[367180334,1750695038216,-568.24,0.00021582,2]
[367180335,1750695038225,-460.0,0.00021582,2]
[367180336,1750695038235,-713.65,0.00021582,2]
[367180337,1750695038244,-6530.67,0.00021582,2]
[367180338,1750695038253,-460.0,0.00021582,2]
[367180339,1750695038263,-460.0,0.00021582,2]
[367180340,1750695038273,-758.5,0.00021583,3]
[367180341,1750695038283,-379.25,0.00021583,3]
[367180342,1750695038293,-189.62,0.00021583,3]
[367180343,1750695038303,-568.9,0.00021583,3]
[367180344,1750695038312,-176.31,0.00021583,3]
[367180345,1750695038321,-528.98,0.00021583,3]
[367180346,1750695038330,-460.0,0.0002159,2]
[367180347,1750695038339,-460.0,0.0002159,2]
[367180348,1750695038348,-460.0,0.0002159,2]
[367180349,1750695038358,-460.0,0.0002159,2]
[367180350,1750695038368,-1117.73,0.0002159,2]
[367180351,1750695038377,-460.0,0.0002159,2]
[367180352,1750695038386,-460.0,0.0002159,2]
[367180353,1750695038396,-161.74308903,0.0002159,2]
[367180354,1750695038406,-1093.95,0.0002159,2]
[367180355,1750695038416,-460.0,0.0002159,2]
[367180356,1750695038427,-460.0,0.0002159,2]
[367180357,1750695038438,-460.0,0.0002159,2]
[367180358,1750695038447,-460.0,0.0002159,2]
[367180359,1750695038456,-460.0,0.0002159,2]
[367180360,1750695038466,-1143.04,0.0002159,2]
[367180361,1750695038475,-500.94093473,0.0002159,2]
[367180362,1750695038484,-500.0,0.0002159,2]
[367180363,1750695038494,-246.73070236,0.0002159,2]
[367180364,1750695038504,-500.0,0.0002159,2]
[367180365,1750695038518,-500.0,0.0002159,2]
[367180366,1750695038528,-500.0,0.0002159,2]
[367180367,1750695038538,-500.0,0.0002159,2]
[367180368,1750695038547,-500.0,0.0002159,2]
[367180369,1750695038558,-500.0,0.0002159,2]
[367180370,1750695038568,-500.0,0.0002159,2]
[367180371,1750695038577,-378.70351354,0.0002159,2]
[367180373,1750695038588,-171.85124347,0.0002159,2]
[367180375,1750695038597,-500.0,0.0002159,2]
[367180377,1750695038607,-500.0,0.0002159,2]
[367180378,1750695038616,-500.0,0.0002159,2]
[367180379,1750695038626,-500.0,0.0002159,2]
[367180380,1750695038636,-500.0,0.0002159,2]
[367180381,1750695038645,-500.0,0.0002159,2]
[367180382,1750695038655,-500.0,0.0002159,2]
[367180383,1750695038664,-500.0,0.0002159,2]
[367180384,1750695038677,-500.0,0.0002159,2]
[367180385,1750695038687,-500.0,0.0002159,2]
[367180386,1750695038696,-500.0,0.0002159,2]
[367180387,1750695038706,-500.0,0.0002159,2]
[367180388,1750695038715,-500.0,0.0002159,2]
[367180389,1750695038725,-500.0,0.0002159,2]
[367180390,1750695038734,-462.51159632,0.0002159,2]
[367180391,1750695038744,-500.0,0.0002159,2]
[367180392,1750695038754,-500.0,0.0002159,2]
[367180393,1750695038764,-500.0,0.0002159,2]
[367180394,1750695038773,-500.0,0.0002159,2]
[367180395,1750695038783,-500.0,0.0002159,2]
[367180396,1750695038793,-500.0,0.0002159,2]
[367180397,1750695038802,-485.27578159,0.0002159,2]
[367180398,1750695038812,-500.0,0.0002159,2]
[367180399,1750695038822,-500.0,0.0002159,2]
[367180400,1750695038832,-500.0,0.0002159,2]
[367180401,1750695038842,-500.0,0.0002159,2]
[367180402,1750695038851,-500.0,0.0002159,2]
[367180403,1750695038861,-500.0,0.0002159,2]
[367180404,1750695038871,-500.0,0.0002159,2]
[367180405,1750695038881,-500.0,0.0002159,2]
[367180406,1750695038891,-500.0,0.0002159,2]
[367180407,1750695038900,-500.0,0.0002159,2]
[367180408,1750695038910,-500.0,0.0002159,2]
[367180409,1750695038921,-500.0,0.0002159,2]
[367180410,1750695038931,-635.02085722,0.0002159,2]
[367180411,1750695038940,-500.0,0.0002159,2]
[367180412,1750695038949,-315.4673648,0.0002159,2]
[367180413,1750695038958,-500.0,0.0002159,2]
[367180414,1750695038969,-500.0,0.0002159,2]
[367180415,1750695038979,-500.0,0.0002159,2]
[367180416,1750695038989,-500.0,0.0002159,2]
[367180417,1750695038998,-500.0,0.0002159,2]
[367180418,1750695039007,-500.0,0.0002159,2]
[367180419,1750695039016,-500.0,0.0002159,2]
[367180420,1750695039026,-500.0,0.0002159,2]
[367180421,1750695039037,-500.0,0.0002159,2]
[367180422,1750695039047,-500.0,0.0002159,2]
[367180423,1750695039056,-500.0,0.0002159,2]
[367180424,1750695039065,-500.0,0.0002159,2]
[367180425,1750695039074,-500.0,0.0002159,2]
[367180426,1750695039084,-500.0,0.0002159,2]
[367180427,1750695039093,-500.0,0.0002159,2]
[367180428,1750695039103,-500.0,0.0002159,2]
[367180429,1750695039113,-500.0,0.0002159,2]
[367180430,1750695039123,-500.0,0.0002159,2]
[367180431,1750695039133,-500.0,0.0002159,2]
[367180432,1750695039143,-654.66363569,0.00021591,2]
[367180433,1750695039152,-453.72137436,0.00021591,2]
[367180434,1750695039162,-460.0,0.00021591,2]
[367180435,1750695039173,-792.16,0.00021591,2]
[367180436,1750695039182,-460.0,0.00021591,2]
[367180437,1750695039191,-460.0,0.00021591,2]
[367180438,1750695039200,-460.0,0.00021591,2]
[367180439,1750695039209,-1076.17,0.00021591,2]
[367180440,1750695039219,-460.0,0.00021591,2]
[367180441,1750695039228,-460.0,0.00021591,2]
[367180442,1750695039238,-593.68,0.00021591,2]
[367180443,1750695039247,-460.0,0.00021591,2]
[367180444,1750695039257,-541.85854381,0.00021592,2]
[367180445,1750695039267,-460.0,0.00021592,2]
[367180446,1750695039277,-460.0,0.00021592,2]
[367180447,1750695039286,-646.56,0.00021592,2]
[367180448,1750695039296,-460.0,0.00021592,2]
[367180449,1750695039305,-460.0,0.00021592,2]
[367180450,1750695039315,-460.0,0.00021592,2]
[367180451,1750695039325,-460.0,0.00021592,2]
[367180452,1750695039335,-429.10236389,0.00021592,2]
[367180453,1750695039344,-460.0,0.00021592,2]
[367180454,1750695039354,-548.63,0.00021592,2]
[367180455,1750695039364,-460.0,0.00021592,2]
[367180456,1750695039374,-460.0,0.00021592,2]
[367180457,1750695039384,-5755.87,0.00021592,2]
[367180458,1750695039394,-460.0,0.00021592,2]
[367180459,1750695039404,-460.0,0.00021592,2]
[367180460,1750695039414,-6124.54,0.00021592,2]
[367180461,1750695039426,-460.0,0.00021592,2]
[367180462,1750695039435,-1683.77,0.00021592,2]
[367180463,1750695039445,-696.61,0.00021592,2]
[367180464,1750695039455,-1042.25,0.00021592,2]
[367180465,1750695039464,-460.0,0.00021592,2]
[367180466,1750695039474,-460.0,0.00021592,2]
[367180467,1750695039484,-460.0,0.00021592,2]
[367180468,1750695039493,-460.0,0.00021592,2]
[367180469,1750695039504,-2967.75,0.00021592,2]
[367180470,1750695039516,-6587.16,0.00021592,2]
[367180471,1750695039527,-1335.52,0.00021592,2]
[367180472,1750695039537,-460.0,0.00021592,2]
[367180473,1750695039546,-460.0,0.00021592,2]
[367180474,1750695039557,-2444.61,0.00021592,2]
[367180475,1750695039567,-816.98,0.00021592,2]
[367180476,1750695039576,-2026.45,0.00021592,2]
[367180477,1750695039587,-4341.83,0.00021592,2]
[367180478,1750695039598,-1295.39,0.00021592,2]
[367180479,1750695039608,-1428.47,0.00021592,2]
[367180481,1750695039618,-460.0,0.00021593,2]
[367180483,1750695039628,-460.0,0.00021593,2]
[367180484,1750695039639,-460.0,0.00021593,2]
[367180485,1750695039651,-460.0,0.00021593,2]
[367180486,1750695039662,-460.0,0.00021593,2]
[367180487,1750695039673,-716.5,0.00021593,2]
[367180488,1750695039683,-460.0,0.00021593,2]
[367180489,1750695039694,-712.96,0.00021593,2]
[367180490,1750695039704,-460.0,0.00021593,2]
[367180491,1750695039715,-460.0,0.00021593,2]
[367180492,1750695039726,-694.31,0.00021593,2]
[367180493,1750695039736,-460.0,0.00021593,2]
[367180494,1750695039746,-460.0,0.00021593,2]
[367180496,1750695039756,-460.0,0.00021593,2]
[367180497,1750695039766,-585.87,0.00021593,2]
[367180498,1750695039776,-460.0,0.00021593,2]
[367180499,1750695039786,-460.0,0.00021593,2]
[367180500,1750695039796,-460.0,0.00021593,2]
[367180501,1750695039806,-460.0,0.00021593,2]
[367180502,1750695039816,-460.0,0.00021593,2]
[367180503,1750695039826,-500.0,0.00021593,2]
[367180504,1750695039836,-460.0,0.00021593,2]
[367180505,1750695039846,-460.0,0.00021593,2]
[367180506,1750695039856,-408.7478443,0.00021593,2]
[367180507,1750695039866,-460.0,0.00021593,2]
[367180508,1750695039877,-460.0,0.00021593,2]
[367180509,1750695039887,-460.0,0.00021593,2]
[367180510,1750695039897,-460.0,0.00021593,2]
[367180511,1750695039906,-460.0,0.00021593,2]
[367180512,1750695039916,-460.0,0.00021593,2]
[367180513,1750695039927,-460.0,0.00021593,2]
[367180514,1750695039938,-460.0,0.00021593,2]
[367180515,1750695039948,-460.0,0.00021593,2]
[367180516,1750695039958,-460.0,0.00021593,2]
[367180517,1750695039968,-460.0,0.00021593,2]
[367180518,1750695039978,-460.0,0.00021593,2]
[367180519,1750695039988,-460.0,0.00021593,2]
[367180520,1750695039999,-460.0,0.00021593,2]
[367180521,1750695040008,-460.0,0.00021593,2]
[367180522,1750695040018,-460.0,0.00021593,2]
[367180523,1750695040028,-460.0,0.00021593,2]
[367180524,1750695040038,-460.0,0.00021593,2]
[367180525,1750695040048,-460.0,0.00021593,2]
[367180526,1750695040058,-460.0,0.00021593,2]
[367180527,1750695040068,-407.55237719,0.00021593,2]
[367180528,1750695040078,-460.0,0.00021593,2]
[367180529,1750695040088,-460.0,0.00021593,2]
[367180530,1750695040098,-460.0,0.00021593,2]
[367180531,1750695040108,-460.0,0.00021593,2]
[367180532,1750695040118,-460.0,0.00021593,2]
[367180533,1750695040128,-460.0,0.00021593,2]
[367180534,1750695040138,-460.0,0.00021593,2]
[367180535,1750695040147,-460.0,0.00021593,2]
[367180536,1750695040157,-460.0,0.00021593,2]
[367180537,1750695040167,-1472.57,0.00021593,2]
[367180538,1750695040178,-460.0,0.00021593,2]
[367180539,1750695040188,-460.0,0.00021593,2]
[367180540,1750695040199,-1101.95,0.00021593,2]
[367180541,1750695040209,-460.0,0.00021593,2]
[367180542,1750695040219,-697.18,0.00021593,2]
[367180543,1750695040228,-460.0,0.00021593,2]
[367180544,1750695040239,-460.0,0.00021593,2]
[367180545,1750695040250,-460.0,0.00021593,2]
[367180546,1750695040261,-460.03798116,0.00021593,2]
[367180547,1750695040272,-519.63,0.00021593,2]
[367180548,1750695040282,-460.0,0.00021593,2]
[367180549,1750695040292,-506.34,0.00021593,2]
[367180550,1750695040302,-460.0,0.00021593,2]
[367180551,1750695040312,-460.0,0.00021593,2]
[367180552,1750695040322,-460.0,0.00021593,2]
[367180553,1750695040332,-460.0,0.00021593,2]
[367180554,1750695040342,-460.0,0.00021593,2]
[367180555,1750695040352,-460.0,0.00021593,2]
[367180556,1750695040362,-460.0,0.00021593,2]
[367180557,1750695040372,-460.0,0.00021593,2]
[367180558,1750695040381,-529.96,0.00021593,2]
[367180559,1750695040391,-460.0,0.00021593,2]
[367180560,1750695040402,-525.83812437,0.00021593,2]
[367180561,1750695040412,-460.0,0.00021593,2]
[367180562,1750695040422,-460.0,0.00021593,2]
[367180563,1750695040432,-460.0,0.00021593,2]
[367180564,1750695040443,-460.0,0.00021593,2]
[367180565,1750695040453,-460.0,0.00021593,2]
[367180567,1750695040463,-460.0,0.00021593,2]
[367180569,1750695040472,-460.0,0.00021593,2]
[367180570,1750695040482,-460.0,0.00021593,2]
[367180571,1750695040493,-460.0,0.00021593,2]
[367180572,1750695040503,-460.0,0.00021593,2]
[367180573,1750695040517,-460.0,0.00021593,2]
[367180574,1750695040527,-460.0,0.00021593,2]
[367180575,1750695040539,-772.43,0.00021593,2]
[367180576,1750695040550,-460.0,0.00021593,2]
[367180577,1750695040563,-460.0,0.00021593,2]
[367180578,1750695040574,-460.0,0.00021593,2]
[367180579,1750695040584,-703.03,0.00021593,2]
[367180580,1750695040594,-460.0,0.00021593,2]
[367180581,1750695040603,-460.0,0.00021593,2]
[367180582,1750695040613,-2988.47,0.00021593,2]
[367180583,1750695040623,-460.0,0.00021593,2]
[367180584,1750695040633,-460.0,0.00021593,2]
[367180585,1750695040643,-500.0,0.00021593,2]
[367180586,1750695040655,-460.2241421,0.00021593,2]
[367180587,1750695040664,-8032.03,0.00021593,2]
[367180588,1750695040675,-406.24430098,0.00021593,2]
[367180589,1750695040686,-460.0,0.00021593,2]
[367180590,1750695040696,-553.82954018,0.00021593,2]
[367180591,1750695040707,-460.0,0.00021593,2]
[367180592,1750695040717,-460.0,0.00021593,2]
[367180593,1750695040727,-460.0,0.00021593,2]
[367180594,1750695040738,-1030.53,0.00021593,2]
[367180595,1750695040748,-629.75,0.00021593,2]
[367180596,1750695040758,-460.0,0.00021593,2]
[367180597,1750695040769,-597.62,0.00021593,2]
[367180598,1750695040779,-460.0,0.00021593,2]
[367180599,1750695040790,-460.0,0.00021593,2]
[367180600,1750695040800,-643.92,0.00021593,2]
[367180601,1750695040811,-460.0,0.00021593,2]
[367180602,1750695040821,-460.0,0.00021593,2]
[367180603,1750695040831,-460.0,0.00021593,2]
[367180604,1750695040841,-460.0,0.00021593,2]
[367180605,1750695040851,-699.24,0.00021593,2]
[367180606,1750695040861,-460.0,0.00021593,2]
[367180607,1750695040871,-460.0,0.00021593,2]
[367180608,1750695040881,-460.0,0.00021593,2]
[367180609,1750695040892,-460.0,0.00021593,2]
[367180610,1750695040901,-460.0,0.00021593,2]
[367180611,1750695040911,-572.57179302,0.00021593,2]
[367180612,1750695040921,-3562.05,0.00021593,2]
[367180613,1750695040932,-460.0,0.00021593,2]
[367180614,1750695040942,-460.0,0.00021593,2]
[367180615,1750695040952,-460.0,0.00021593,2]
[367180616,1750695040962,-460.0,0.00021593,2]
[367180617,1750695040971,-436.42168427,0.00021593,2]
[367180618,1750695040981,-1834.78,0.00021593,2]
[367180619,1750695040991,-460.0,0.00021593,2]
[367180620,1750695041000,-1370.2,0.00021593,2]
[367180621,1750695041010,-460.0,0.00021593,2]
[367180622,1750695041020,-893.28,0.00021593,2]
[367180623,1750695041030,-460.0,0.00021593,2]
[367180624,1750695041040,-460.0,0.00021593,2]
[367180625,1750695041050,-460.0,0.00021593,2]
[367180626,1750695041060,-460.0,0.00021593,2]
[367180627,1750695041070,-460.0,0.00021593,2]
[367180628,1750695041080,-460.0,0.00021593,2]
[367180629,1750695041090,-460.0,0.00021593,2]
[367180630,1750695041100,-460.0,0.00021593,2]
[367180631,1750695041110,-460.0,0.00021593,2]
[367180632,1750695041119,-500.0,0.00021593,2]
[367180633,1750695041129,-460.0,0.00021593,2]
[367180634,1750695041140,-460.0,0.00021593,2]
[367180635,1750695041150,-1685.24,0.00021593,2]
[367180636,1750695041160,-489.21579116,0.00021593,2]
[367180637,1750695041170,-460.0,0.00021593,2]
[367180638,1750695041182,-460.0,0.00021593,2]
[367180639,1750695041192,-464.44,0.00021593,2]
[367180640,1750695041202,-460.0,0.00021593,2]
[367180641,1750695041211,-460.0,0.00021593,2]
[367180642,1750695041221,-460.0,0.00021593,2]
[367180643,1750695041231,-460.0,0.00021593,2]
[367180644,1750695041241,-460.0,0.00021593,2]
[367180645,1750695041251,-460.0,0.00021593,2]
[367180646,1750695041261,-460.0,0.00021593,2]
[367180647,1750695041271,-544.51,0.00021593,2]
[367180648,1750695041281,-460.0,0.00021593,2]
[367180649,1750695041291,-460.0,0.00021593,2]
[367180650,1750695041301,-460.0,0.00021593,2]
[367180651,1750695041310,-460.0,0.00021593,2]
[367180652,1750695041322,-460.0,0.00021593,2]
[367180653,1750695041332,-460.0,0.00021593,2]
[367180654,1750695041342,-460.0,0.00021593,2]
[367180655,1750695041352,-460.0,0.00021593,2]
[367180656,1750695041361,-460.0,0.00021593,2]
[367180657,1750695041371,-460.0,0.00021593,2]
[367180658,1750695041381,-445.17769702,0.00021593,2]
[367180659,1750695041391,-481.68,0.00021593,2]
[367180660,1750695041402,-460.0,0.00021593,2]
[367180661,1750695041412,-460.0,0.00021593,2]
[367180662,1750695041422,-460.0,0.00021593,2]
[367180663,1750695041434,-364.19778981,0.00021593,2]
[367180664,1750695041443,-460.0,0.00021593,2]
[367180665,1750695041453,-460.0,0.00021593,2]
[367180666,1750695041464,-460.0,0.00021593,2]
[367180667,1750695041474,-631.24,0.00021593,2]
[367180668,1750695041485,-460.0,0.00021593,2]
[367180669,1750695041496,-460.0,0.00021593,2]
[367180670,1750695041510,-460.0,0.00021593,2]
[367180671,1750695041521,-460.0,0.00021593,2]
[367180672,1750695041531,-460.0,0.00021593,2]
[367180673,1750695041541,-1741.5,0.00021593,2]
[367180674,1750695041554,-460.0,0.00021593,2]
[367180675,1750695041564,-460.0,0.00021593,2]
[367180676,1750695041574,-468.97,0.00021593,2]
[367180677,1750695041585,-460.0,0.00021593,2]
[367180678,1750695041596,-460.19304519,0.00021593,2]
[367180679,1750695041607,-460.0,0.00021593,2]
[367180680,1750695041617,-952.49,0.00021593,2]
[367180681,1750695041628,-547.71,0.00021593,2]
[367180682,1750695041639,-460.0,0.00021593,2]
[367180683,1750695041649,-460.0,0.00021593,2]
[367180684,1750695041661,-3204.23,0.00021593,2]
[367180685,1750695041882,-886.57,0.00021593,2]
[367180686,1750695041892,-460.0,0.00021593,2]
[367180687,1750695041902,-460.0,0.00021593,2]
[367180688,1750695041912,-460.0,0.00021593,2]
[367180689,1750695041921,-460.0,0.00021593,2]
[367180690,1750695041932,-460.0,0.00021593,2]
[367180691,1750695041942,-1147.11,0.00021593,2]
[367180692,1750695041952,-460.0,0.00021593,2]
[367180693,1750695041961,-1939.51,0.00021593,2]
[367180694,1750695041970,-460.0,0.00021593,2]
[367180695,1750695041980,-460.0,0.00021593,2]
[367180696,1750695041989,-460.0,0.00021593,2]
[367180697,1750695041999,-488.19,0.00021593,2]
[367180698,1750695042008,-460.0,0.00021593,2]
[367180699,1750695042017,-460.0,0.00021593,2]
[367180700,1750695042027,-1339.33,0.00021593,2]
[367180701,1750695042036,-619.12,0.00021593,2]
[367180702,1750695042046,-460.0,0.00021593,2]
[367180703,1750695042056,-460.0,0.00021593,2]
[367180704,1750695042065,-543.33112431,0.00021593,2]
[367180705,1750695042075,-778.82,0.00021593,2]
[367180706,1750695042084,-482.75,0.00021593,2]
[367180707,1750695042094,-500.0,0.00021593,2]
[367180708,1750695042103,-1075.57,0.00021593,2]
[367180709,1750695042113,-460.0,0.00021593,2]
[367180710,1750695042123,-460.0,0.00021593,2]